fUSD/lending_fUSD_20250814
["ID","MTS","AMOUNT","RATE_DAILY","PERIOD"]
[379217637,1755193808928,-300.0,0.00021245,2]
[379217638,1755193808968,-500.0,0.00021245,2]
[379217639,1755193810603,151.0,0.00019239,2]
[379217649,1755193831814,-151.0,0.00019239,2]
[379217650,1755193831823,-666.0,0.00021918,3]
[379217651,1755193831832,-4367.5489033,0.00022536,2]
[379217652,1755193831841,-150.0,0.00022906,2]
[379217653,1755193831850,-587.0,0.00022931,2]
[379217654,1755193831859,-2351.0,0.00023154,2]
[379217655,1755193831868,-640.0,0.00023269,2]
[379217656,1755193831877,-1000.0,0.00023585,2]
[379217657,1755193831886,-500.0,0.00024008,2]
[379217658,1755193831895,-4913.4925162,0.00024039,2]
[379217659,1755193831905,-150.0,0.00024069,2]
[379217660,1755193831914,-381.12,0.00024069,2]
[379217661,1755193831923,-219.91,0.0002407,2]
[379217662,1755193831932,-159.4,0.00024106,2]
[379217663,1755193831942,-940.0,0.00024106,3]
[379217664,1755193831951,-159.4,0.00024166,2]
[379217665,1755193831960,-187.04,0.00024197,2]
[379217666,1755193831970,-159.4,0.00024226,2]
[379217667,1755193831979,-250.0,0.00024254,2]
[379217668,1755193831988,-300.0,0.00024276,2]
[379217669,1755193831997,-159.4,0.00024287,2]
[379217670,1755193832007,-5000.0,0.00024304,2]
[379217671,1755193832017,-159.4,0.00024347,2]
[379217672,1755193832026,-3029.44919623,0.00024424,2]
[379217673,1755193832035,-2000.0,0.00024658,15]
[379217674,1755193832044,-772.58534058,0.00024871,2]
[379217675,1755193832053,-1788.67521396,0.000249,2]
[379217676,1755193832062,-500.0,0.00024977,2]
[379217677,1755193832071,-823.0,0.00024987,2]
[379217678,1755193832080,-772.58534058,0.00024989,2]
[379217680,1755193832090,-2000.77170449,0.00025,2]
[379217682,1755193832099,-2000.12345678,0.00025,3]
[379217683,1755193832108,-2000.12345678,0.00025,4]
[379217684,1755193832117,-1308.0,0.00025,2]
[379217685,1755193832127,-997.0,0.00025034,2]
[379217686,1755193832136,-182.02,0.00025089,2]
[379217687,1755193832146,-152.8,0.00025117,2]
[379217688,1755193832156,-1119.69307991,0.00025242,2]
[379217689,1755193832165,-772.58534058,0.00025282,2]
[379217690,1755193832174,-335.37,0.00025327,2]
[379217691,1755193832184,-306.0,0.00025351,2]
[379217692,1755193832194,-5459.4361291,0.00025383,2]
[379217693,1755193832204,-300.0,0.00025514,2]
[379217694,1755193832213,-772.58534058,0.00025565,2]
[379217695,1755193832224,-450.0,0.00025646,2]
[379217696,1755193832233,-772.58534058,0.0002587,2]
[379217697,1755193832242,-166.66,0.00025877,2]
[379217698,1755193832252,-1281.0,0.0002593,2]
[379217699,1755193832261,-300.0,0.00025942,2]
[379217701,1755193832272,-600.0,0.00025942,2]
[379217703,1755193832281,-160.0,0.00025942,2]
[379217705,1755193832290,-3000.0,0.00025942,2]
[379217707,1755193832300,-277.35679052,0.00025942,2]
[379217709,1755193832310,-151.0,0.00025942,2]
[379217710,1755193832319,-151.0,0.00025942,2]
[379217711,1755193832328,-772.58534058,0.00026049,2]
[379217712,1755193832337,-18629.92591128,0.00026151,2]
[379217713,1755193832347,-1000.0,0.00026206,2]
[379217714,1755193832356,-708.67,0.00026242,2]
[379217715,1755193832365,-747.89,0.00026272,30]
[379217717,1755193832374,-26610.40951659,0.00026312,2]
[379217718,1755193832383,-150.0,0.00026399,2]
[379217719,1755193832392,-303.67,0.00026399,2]
[379217720,1755193832403,-400.0,0.000264,9]
[379217721,1755193832412,-3585.66911307,0.00026487,2]
[379217722,1755193832421,-600.0,0.0002649,2]
[379217723,1755193832431,-151.0,0.0002649,2]
[379217724,1755193832440,-151.0,0.0002649,2]
[379217725,1755193832450,-800.0,0.000265,9]
[379217726,1755193832459,-168.0,0.00026516,2]
[379217727,1755193832469,-772.58534058,0.0002652,2]
[379217728,1755193832479,-173.4,0.00026548,2]
[379217729,1755193832488,-173.4,0.00026548,2]
[379217730,1755193832497,-173.4,0.00026548,2]
[379217731,1755193832511,-360.13,0.00026548,2]
[379217732,1755193832522,-720.26,0.00026548,2]
[379217733,1755193832531,-6005.379742,0.00026599,2]
[379217734,1755193832540,-1300.0,0.000266,9]
[379217735,1755193832550,-3585.66911307,0.00026603,2]
[379217736,1755193832559,-2500.0,0.00026612,2]
[379217737,1755193832568,-563.5590576,0.00026612,10]
[379217738,1755193832577,-187.04,0.00026617,2]
[379217739,1755193832588,-772.58534062,0.00026669,2]
[379217740,1755193832598,-160.0,0.00026672,2]
[379217741,1755193832607,-190.29,0.00026676,2]
[379217742,1755193832616,-1700.0,0.000267,9]
[379217743,1755193832628,-1000.0,0.000267,2]
[379217744,1755193832637,-706.0,0.00026707,2]
[379217745,1755193832647,-468.3,0.00026711,2]
[379217746,1755193832658,-934.46,0.00026711,2]
[379217747,1755193832667,-708.65,0.00026711,2]
[379217748,1755193832677,-468.3,0.00026711,2]
[379217749,1755193832686,-468.3,0.00026711,2]
[379217750,1755193832695,-468.3,0.00026711,2]
[379217751,1755193832705,-467.61,0.00026711,2]
[379217752,1755193832714,-938.06,0.00026711,2]
[379217753,1755193832723,-468.3,0.00026711,2]
[379217754,1755193832733,-468.3,0.00026711,2]
[379217755,1755193832742,-468.3,0.00026711,2]
[379217756,1755193832751,-468.3,0.00026711,2]
[379217757,1755193832760,-468.3,0.00026711,2]
[379217758,1755193832770,-3585.66911307,0.00026719,2]
[379217759,1755193832780,-166.66,0.00026731,2]
[379217760,1755193832789,-1182.56,0.0002674,2]
[379217761,1755193832799,-1182.56,0.0002674,2]
[379217762,1755193832808,-1182.56,0.0002674,2]
[379217763,1755193832818,-1182.56,0.0002674,2]
[379217764,1755193832827,-1182.56,0.0002674,2]
[379217765,1755193832840,-1182.56,0.0002674,2]
[379217766,1755193832851,-1182.56,0.0002674,2]
[379217767,1755193832862,-1182.56,0.0002674,2]
[379217768,1755193832872,-1182.56,0.0002674,2]
[379217769,1755193832881,-5888.0,0.00026744,2]
[379217770,1755193832890,-1000.0,0.00026784,2]
[379217771,1755193832900,-3499.19947444,0.00026793,2]
[379217772,1755193832909,-1196.88700924,0.00026796,2]
[379217773,1755193832919,-2100.0,0.000268,9]
[379217774,1755193832928,-2056.55396941,0.00026803,2]
[379217775,1755193832939,-5665.09767917,0.00026804,2]
[379217776,1755193832948,-3499.19947444,0.0002681,2]
[379217777,1755193832958,-1749.59973721,0.00026811,2]
[379217778,1755193832967,-1196.88700924,0.00026813,2]
[379217779,1755193832976,-1196.88700924,0.00026817,2]
[379217780,1755193832985,-706.0,0.00026822,7]
[379217781,1755193832994,-162.7193963,0.00026823,2]
[379217782,1755193833003,-21160.82657865,0.00026826,2]
[379217783,1755193833025,-541.7,0.00026,7]
[379217784,1755193833035,-479.68000001,0.00026826,2]
[379217785,1755193833047,-3823.32275992,0.00026826,2]
[379217786,1755193833071,-7523.04869115,0.00026826,2]
[379217787,1755193833097,-173.87467376,0.00026823,2]
[379217788,1755193833107,-644.83643297,0.00026826,2]
[379217789,1755193833129,-1200.0,0.00026826,2]
[379217790,1755193833572,-300.95,0.00021918,2]
[379217791,1755193833584,-3681.31194061,0.00026826,2]
[379217792,1755193833594,-1196.88700924,0.00026826,2]
[379217793,1755193833604,-1196.88700924,0.00026827,2]
[379217794,1755193833613,-336.60664143,0.00026831,2]
[379217795,1755193833624,-2248.60000004,0.00026831,2]
[379217796,1755193833639,-1068.18742954,0.00026831,2]
[379217797,1755193833651,-602.80998836,0.00026831,2]
[379217800,1755193837596,-1079.27394703,0.00026831,2]
[379217801,1755193837608,-329.61967277,0.00026831,2]
[379217802,1755193837618,-355.41006255,0.00026832,2]
[379217803,1755193837653,-2109.00964071,0.00026832,2]
[379217804,1755193837705,-2269.44999999,0.00026832,2]
[379217805,1755193837717,-297.52310819,0.00026832,2]
[379217806,1755193837813,-633.70486773,0.00026832,2]
[379217807,1755193837823,-1749.59973721,0.00026834,2]
[379217808,1755193837833,-3585.66911307,0.00026834,2]
[379217809,1755193837841,-158.6412251,0.0002684,2]
[379217810,1755193837850,-3499.19947444,0.0002684,2]
[379217811,1755193837859,-1749.59973721,0.00026847,2]
[379217812,1755193837869,-3499.19947444,0.00026848,2]
[379217813,1755193837878,-2197.75,0.00026849,14]
[379217814,1755193837887,-2056.55396941,0.00026855,2]
[379217815,1755193837897,-38513.02640331,0.00026857,2]
[379217816,1755193837907,-2056.55396941,0.00026857,2]
[379217817,1755193837916,-706.0,0.00026859,2]
[379217819,1755193837926,-5665.09767917,0.0002686,2]
[379217821,1755193837935,-4816.32,0.0002686,14]
[379217822,1755193837945,-23818.86,0.0002686,14]
[379217823,1755193837955,-1255.0,0.0002686,2]
[379217824,1755193837965,-5665.09767917,0.00026861,2]
[379217826,1755193837975,-5665.09767917,0.00026862,2]
[379217827,1755193837984,-3499.19947444,0.00026863,2]
[379217829,1755193837994,-2056.55396941,0.00026867,2]
[379217831,1755193838003,-1749.59973721,0.00026873,2]
[379217833,1755193838013,-1196.88700924,0.00026877,2]
[379217835,1755193838023,-1196.88700924,0.00026877,2]
[379217837,1755193838032,-300.0,0.00026884,2]
[379217839,1755193838041,-1749.59973721,0.00026887,2]
[379217841,1755193838051,-1196.88700924,0.00026887,2]
[379217843,1755193838061,-1749.59973721,0.0002689,2]
[379217845,1755193838070,-38513.02640331,0.00026892,2]
[379217847,1755193838080,-1196.88700924,0.00026893,2]
[379217849,1755193838089,-1196.88700924,0.00026898,2]
[379217851,1755193838099,-1000.0,0.000269,2]
[379217853,1755193838108,-400.0,0.000269,9]
[379217855,1755193838118,-967.85228249,0.000269,2]
[379217857,1755193838128,-967.8522823,0.000269,2]
[379217859,1755193838137,-967.8522823,0.000269,2]
[379217861,1755193838147,-967.8522823,0.000269,2]
[379217862,1755193838156,-967.8522823,0.000269,2]
[379217863,1755193838166,-967.8522823,0.000269,2]
[379217864,1755193838175,-5665.09767917,0.000269,2]
[379217865,1755193838184,-3499.19947444,0.00026903,2]
[379217866,1755193838194,-2056.55396941,0.00026909,2]
[379217867,1755193838203,-967.8522823,0.00026912,2]
[379217868,1755193838212,-19412.8206381,0.00026913,2]
[379217869,1755193838221,-19412.8206381,0.00026918,2]
[379217870,1755193838231,-38513.02640331,0.00026921,2]
[379217871,1755193838240,-223247.437338,0.00026923,2]
[379217872,1755193838250,-189366.762777,0.00026923,2]
[379217873,1755193838259,-322.17118103,0.00026923,2]
[379217874,1755193838269,-5665.09767917,0.00026923,2]
[379217875,1755193838279,-162.71939629,0.00026925,2]
[379217876,1755193838288,-1196.88700924,0.00026925,2]
[379217877,1755193838297,-350.0,0.00026931,2]
[379217878,1755193838307,-208.87732646,0.00026932,2]
[379217879,1755193838316,-203.94073189,0.00026932,2]
[379217880,1755193838326,-500.0,0.00026932,2]
[379217881,1755193838335,-500.0,0.00026932,2]
[379217882,1755193838344,-198.52717308,0.00026932,2]
[379217883,1755193838354,-4062.0,0.00026933,2]
[379217884,1755193838364,-155.72095787,0.0002694,2]
[379217885,1755193838373,-6763.09867059,0.0002694,2]
[379217886,1755193838383,-967.8522823,0.00026941,2]
[379217887,1755193838392,-1749.59973721,0.00026942,2]
[379217888,1755193838401,-5665.09767917,0.00026944,2]
[379217889,1755193838411,-2056.55396941,0.00026945,2]
[379217890,1755193838420,-13526.1973412,0.00026948,2]
[379217891,1755193838430,-3585.66911307,0.0002695,2]
[379217892,1755193838439,-38513.02640331,0.00026953,2]
[379217893,1755193838448,-6763.09867059,0.00026953,2]
[379217894,1755193838458,-2056.55396941,0.00026954,2]
[379217895,1755193838467,-82964.49739506,0.00026958,2]
[379217896,1755193838477,-151.0,0.00026958,3]
[379217897,1755193838486,-151.0,0.00026958,3]
[379217898,1755193838495,-151.0,0.00026958,2]
[379217899,1755193838506,-151.0,0.00026958,3]
[379217900,1755193838517,-151.0,0.00026958,3]
[379217901,1755193838527,-151.0,0.00026958,3]
[379217902,1755193838536,-151.0,0.00026958,3]
[379217903,1755193838546,-1217.0,0.00026958,3]
[379217904,1755193838555,-151.0,0.00026958,3]
[379217905,1755193838565,-151.0,0.00026958,3]
[379217906,1755193838574,-151.0,0.00026958,3]
[379217907,1755193838584,-243.2883102,0.00026958,3]
[379217908,1755193838595,-151.0,0.00026958,3]
[379217909,1755193838606,-1217.0,0.00026958,3]
[379217910,1755193838615,-1217.0,0.00026958,3]
[379217911,1755193838624,-151.0,0.00026958,3]
[379217912,1755193838634,-151.0,0.00026958,3]
[379217913,1755193838643,-1217.0,0.00026958,3]
[379217914,1755193838651,-151.0,0.00026958,3]
[379217915,1755193838660,-151.0,0.00026958,3]
[379217916,1755193838670,-1217.0,0.00026958,3]
[379217917,1755193838679,-151.0,0.00026958,3]
[379217918,1755193838689,-151.0,0.00026958,3]
[379217919,1755193838698,-1217.0,0.00026958,3]
[379217920,1755193838708,-151.0,0.00026958,3]
[379217921,1755193838718,-151.0,0.00026958,3]
[379217922,1755193838727,-1217.0,0.00026958,3]
[379217923,1755193838737,-151.0,0.00026958,3]
[379217924,1755193838746,-151.0,0.00026958,3]
[379217925,1755193838756,-151.0,0.00026958,3]
[379217926,1755193838765,-1217.0,0.00026958,3]
[379217927,1755193838776,-151.0,0.00026958,3]
[379217928,1755193838785,-1217.0,0.00026958,3]
[379217929,1755193838795,-151.0,0.00026958,3]
[379217930,1755193838805,-151.0,0.00026958,3]
[379217931,1755193838814,-151.0,0.00026958,3]
[379217932,1755193838941,-1217.0,0.00026958,3]
[379217933,1755193838950,-151.0,0.00026958,3]
[379217934,1755193838960,-151.0,0.00026958,3]
[379217935,1755193838969,-1217.0,0.00026958,3]
[379217936,1755193838978,-151.0,0.00026958,3]
[379217937,1755193838987,-151.0,0.00026958,3]
[379217938,1755193838996,-1217.0,0.00026958,3]
[379217939,1755193839006,-272.02683315,0.00026958,3]
[379217940,1755193839015,-1217.0,0.00026958,3]
[379217941,1755193839025,-151.0,0.00026958,3]
[379217942,1755193839034,-447.7077838,0.00026958,3]
[379217943,1755193839045,-151.0,0.00026958,3]
[379217944,1755193839054,-151.0,0.00026958,3]
[379217945,1755193839063,-151.0,0.00026958,3]
[379217946,1755193839072,-151.0,0.00026958,3]
[379217947,1755193839081,-151.0,0.00026958,3]
[379217948,1755193839090,-151.0,0.00026958,3]
[379217949,1755193839099,-151.0,0.00026958,3]
[379217950,1755193839108,-3114.46983,0.00026958,2]
[379217951,1755193839117,-151.0,0.00026958,3]
[379217952,1755193839127,-151.0,0.00026958,3]
[379217953,1755193839137,-151.0,0.00026958,3]
[379217954,1755193839146,-151.0,0.00026958,3]
[379217955,1755193839156,-151.0,0.00026958,3]
[379217956,1755193839165,-151.0,0.00026958,3]
[379217957,1755193839174,-153.0,0.00026958,3]
[379217958,1755193839184,-177.94939297,0.00026958,3]
[379217959,1755193839193,-235.52053618,0.00026958,3]
[379217960,1755193839202,-151.0,0.00026958,3]
[379217961,1755193839211,-995.81063004,0.00026958,2]
[379217962,1755193839221,-1196.88700924,0.00026962,2]
[379217963,1755193839230,-9183.0111541,0.00026963,2]
[379217964,1755193839240,-2348.0268273,0.00026963,2]
[379217965,1755193839249,-1314.84105922,0.00026965,2]
[379217966,1755193839259,-3499.19947444,0.00026966,2]
[379217967,1755193839268,-1196.88700924,0.00026966,2]
[379217968,1755193839280,-66092.80625704,0.00026966,2]
[379217969,1755193839290,-66092.80625704,0.00026967,2]
[379217970,1755193839299,-5665.09767917,0.00026967,2]
[379217971,1755193839308,-967.8522823,0.00026971,2]
[379217972,1755193839318,-13526.1973412,0.00026971,2]
[379217973,1755193839326,-173.87467376,0.00026973,2]
[379217974,1755193839336,-5665.09767917,0.00026974,2]
[379217975,1755193839345,-5665.09767917,0.00026974,2]
[379217976,1755193839355,-5665.09767917,0.00026975,2]
[379217977,1755193839364,-38513.02640331,0.00026976,2]
[379217978,1755193839373,-320081.76787435,0.00026977,2]
[379217979,1755193839382,-20289.2960118,0.0002698,2]
[379217980,1755193839391,-1196.88700924,0.00026981,2]
[379217981,1755193839401,-5665.09767917,0.00026981,2]
[379217982,1755193839410,-524.05429083,0.00026982,2]
[379217983,1755193839419,-23993.1296432,0.00026984,2]
[379217984,1755193839429,-38513.02640331,0.00026986,2]
[379217985,1755193839438,-13963.68177453,0.00026987,2]
[379217986,1755193839447,-1314.84105922,0.00026992,2]
[379217987,1755193839456,-23993.1296432,0.00026993,2]
[379217988,1755193839465,-13963.68177453,0.00026995,2]
[379217989,1755193839475,-20411.99693424,0.00026995,2]
[379217990,1755193839484,-293.98,0.00027,2]
[379217991,1755193839494,-52042.89853581,0.00027,3]
[379217992,1755193839504,-3600.0,0.00027,28]
[379217993,1755193839516,-305.36,0.00027,2]
[379217994,1755193839527,-150.0,0.00027,2]
[379217996,1755193839536,-160.0,0.00027,3]
[379217997,1755193839546,-427.31,0.00027,2]
[379217998,1755193839555,-468.3,0.00027,2]
[379217999,1755193839564,-360.13,0.00027,2]
[379218000,1755193839574,-360.13,0.00027,2]
[379218001,1755193839584,-1000.0,0.00027,2]
[379218002,1755193839593,-211.86673127,0.00027,3]
[379218003,1755193839602,-458.13769775,0.00027,3]
[379218004,1755193839611,-967.8522823,0.00027001,2]
[379218005,1755193839620,-600.0,0.00027016,2]
[379218006,1755193839629,-706.0,0.00027025,7]
[379218007,1755193839639,-967.8522823,0.0002703,2]
[379218008,1755193839648,-600.0,0.00027038,2]
[379218009,1755193839657,-283.5388254,0.00027038,2]
[379218010,1755193839667,-151.0,0.00027038,2]
[379218011,1755193839676,-967.8522823,0.0002706,2]
[379218012,1755193839685,-3585.66911307,0.00027066,2]
[379218013,1755193839694,-23885.59,0.00027087,14]
[379218014,1755193839703,-26200.67,0.00027087,14]
[379218015,1755193839712,-11954.93,0.00027087,14]
[379218016,1755193839722,-967.8522823,0.0002709,2]
[379218017,1755193839734,-1000.0,0.000271,2]
[379218018,1755193839744,-1000.0,0.000271,2]
[379218019,1755193839754,-967.8522823,0.00027119,2]
[379218020,1755193839764,-2197.75,0.00027123,14]
[379218021,1755193839773,-322.38526236,0.00027133,2]
[379218022,1755193839782,-612.0,0.00027137,2]
[379218023,1755193839791,-158.64122509,0.00027137,2]
[379218024,1755193839800,-309.831,0.0002716,15]
[379218025,1755193839810,-71049.24,0.00027161,14]
[379218026,1755193839819,-506.54829036,0.00027166,2]
[379218027,1755193839829,-200.0,0.00027177,2]
[379218028,1755193839839,-200.0,0.00027177,2]
[379218029,1755193839848,-200.0,0.00027178,2]
[379218030,1755193839858,-200.0,0.00027178,2]
[379218031,1755193839867,-3585.66911307,0.00027181,2]
[379218032,1755193839877,-706.0,0.00027187,2]
[379218033,1755193839887,-25965.953,0.00027197,2]
[379218034,1755193839897,-1500.0,0.00027197,2]
[379218035,1755193839907,-1000.0,0.00027197,2]
[379218036,1755193839917,-250.110724,0.00027197,7]
[379218037,1755193839926,-2229.548676,0.00027197,7]
[379218038,1755193839935,-2229.548676,0.00027197,7]
[379218039,1755193839944,-1000.0,0.000272,2]
[379218040,1755193839953,-185.91271,0.000272,7]
[379218041,1755193839962,-151.0,0.000272,7]
[379218042,1755193839971,-185.91271,0.000272,7]
[379218043,1755193839980,-151.0,0.000272,7]
[379218044,1755193839989,-151.0,0.000272,7]
[379218045,1755193839998,-151.0,0.000272,7]
[379218046,1755193840007,-1000.0,0.000272,2]
[379218047,1755193840016,-342.81,0.00027221,2]
[379218048,1755193840027,-173.4,0.00027221,2]
[379218049,1755193840036,-1152.0,0.00027227,2]
[379218050,1755193840046,-322.38526236,0.00027229,2]
[379218051,1755193840055,-175.11159332,0.00027233,14]
[379218052,1755193840064,-190216.9695,0.00027243,2]
[379218053,1755193840073,-290.7061,0.00027243,7]
[379218054,1755193840082,-290.7061,0.00027243,7]
[379218055,1755193840091,-691.988196,0.00027243,7]
[379218056,1755193840101,-691.988196,0.00027243,7]
[379218057,1755193840111,-1000.0,0.0002726,2]
[379218058,1755193840120,-1000.0,0.0002726,2]
[379218059,1755193840129,-1000.0,0.0002726,2]
[379218060,1755193840139,-540.8328,0.0002726,2]
[379218061,1755193840149,-2283.0,0.0002726,2]
[379218062,1755193840158,-173.67,0.00027285,2]
[379218063,1755193840167,-5000.0,0.00027287,2]
[379218064,1755193840176,-6435.135,0.00027287,16]
[379218065,1755193840186,-4634.6207,0.00027297,2]
[379218066,1755193840195,-3585.66911307,0.00027297,2]
[379218067,1755193840205,-488.52068234,0.00027297,5]
[379218068,1755193840214,-1704.16043509,0.00027297,2]
[379218069,1755193840223,-942.58708911,0.00027297,2]
[379218070,1755193840233,-190.88464858,0.00027297,2]
[379218071,1755193840242,-246.09519603,0.00027297,2]
[379218072,1755193840252,-1000.0,0.00027299,2]
[379218073,1755193840261,-2000.3975575,0.000273,2]
[379218074,1755193840271,-150.0,0.000273,2]
[379218075,1755193840281,-1000.0,0.000273,2]
[379218076,1755193840290,-3417.46,0.000273,2]
[379218077,1755193840300,-2229.548676,0.00027305,7]
[379218078,1755193840309,-2229.548676,0.00027305,7]
[379218079,1755193840318,-1296.0,0.00027305,2]
[379218080,1755193840328,-565.0,0.00027305,2]
[379218081,1755193840338,-1655.0,0.00027305,2]
[379218082,1755193840347,-642.708,0.00027305,2]
[379218083,1755193840357,-3397.295,0.00027305,2]
[379218084,1755193840366,-893.0,0.00027305,2]
[379218085,1755193840376,-3369.0,0.00027305,2]
[379218086,1755193840385,-157.247,0.00027305,2]
[379218087,1755193840395,-927.0,0.00027305,2]
[379218088,1755193840404,-1254.0,0.00027305,2]
[379218089,1755193840413,-1195.274,0.00027305,2]
[379218090,1755193840423,-2234.0,0.00027305,2]
[379218091,1755193840434,-4149.0,0.00027305,2]
[379218092,1755193840445,-6086.0,0.00027305,2]
[379218093,1755193840455,-717.0,0.00027305,2]
[379218094,1755193840465,-311.1,0.00027311,2]
[379218095,1755193840475,-160.0,0.00027311,2]
[379218096,1755193840485,-3111.0,0.00027311,2]
[379218097,1755193840494,-287.61899177,0.00027311,2]
[379218098,1755193840506,-322.38526236,0.00027325,2]
[379218099,1755193840517,-1251.0,0.00027342,2]
[379218100,1755193840528,-6963.11514728,0.0002735,2]
[379218101,1755193840538,-185.91271,0.0002735,7]
[379218102,1755193840547,-151.0,0.0002735,7]
[379218103,1755193840557,-185.91271,0.0002735,7]
[379218104,1755193840566,-151.0,0.0002735,7]
[379218105,1755193840575,-151.0,0.0002735,7]
[379218106,1755193840586,-151.0,0.0002735,7]
[379218107,1755193840595,-500.0,0.00027373,2]
[379218108,1755193840604,-219.71012623,0.00027373,2]
[379218109,1755193840614,-500.0,0.00027373,2]
[379218110,1755193840623,-500.0,0.00027373,2]
[379218111,1755193840632,-500.0,0.00027373,2]
[379218112,1755193840642,-500.0,0.00027373,2]
[379218113,1755193840651,-500.0,0.00027373,2]
[379218114,1755193840660,-500.0,0.00027373,2]
[379218115,1755193840670,-507.31774916,0.00027373,2]
[379218116,1755193840679,-500.0,0.00027373,2]
[379218117,1755193840688,-500.0,0.00027373,2]
[379218118,1755193840698,-500.0,0.00027373,2]
[379218119,1755193840707,-500.0,0.00027373,2]
[379218120,1755193840716,-500.0,0.00027373,2]
[379218121,1755193840725,-500.0,0.00027373,2]
[379218122,1755193840735,-502.9880039,0.00027373,2]
[379218123,1755193840744,-168.26151672,0.00027373,2]
[379218124,1755193840752,-500.0,0.00027373,2]
[379218125,1755193840762,-308.64536307,0.00027373,2]
[379218126,1755193840771,-500.0,0.00027373,2]
[379218127,1755193840780,-370.73324084,0.00027373,2]
[379218128,1755193840790,-366.25864031,0.00027373,2]
[379218129,1755193840799,-500.0,0.00027373,2]
[379218130,1755193840808,-500.0,0.00027373,2]
[379218131,1755193840817,-169.06141551,0.00027373,2]
[379218132,1755193840826,-500.6619435,0.00027373,2]
[379218133,1755193840835,-515.13993855,0.00027373,2]
[379218134,1755193840852,-172.49531556,0.00027373,2]
[379218135,1755193840861,-500.0,0.00027373,2]
[379218136,1755193840870,-500.0,0.00027373,2]
[379218137,1755193840879,-500.0,0.00027373,2]
[379218138,1755193840888,-500.0,0.00027373,2]
[379218139,1755193840897,-500.0,0.00027373,2]
[379218140,1755193840906,-500.0,0.00027373,2]
[379218141,1755193840915,-500.0,0.00027373,2]
[379218142,1755193840924,-500.0,0.00027373,2]
[379218143,1755193840933,-500.0,0.00027373,2]
[379218144,1755193840943,-500.0,0.00027373,2]
[379218145,1755193840951,-500.0,0.00027373,2]
[379218146,1755193840961,-500.0,0.00027373,2]
[379218147,1755193840970,-500.0,0.00027373,2]
[379218148,1755193840979,-500.0,0.00027373,2]
[379218149,1755193840988,-162.08062459,0.00027373,2]
[379218150,1755193840997,-269.96187325,0.00027373,2]
[379218151,1755193841007,-323.90526316,0.00027373,2]
[379218152,1755193841016,-502.24454179,0.00027373,2]
[379218153,1755193841025,-500.0,0.00027373,2]
[379218154,1755193841035,-797.99,0.00027379,2]
[379218155,1755193841043,-322.17118103,0.00027387,2]
[379218156,1755193841052,-322.17118103,0.00027387,2]
[379218157,1755193841061,-274049.28022519,0.00027387,3]
[379218158,1755193841070,-211.86673127,0.0002739,3]
[379218159,1755193841079,-458.13769775,0.0002739,3]
[379218160,1755193841089,-151.0,0.00027396,7]
[379218161,1755193841098,-151.0,0.00027396,7]
[379218162,1755193841107,-290.7061,0.00027396,7]
[379218163,1755193841115,-290.7061,0.00027396,7]
[379218164,1755193841125,-2229.548676,0.00027396,7]
[379218165,1755193841134,-2229.548676,0.00027396,7]
[379218166,1755193841143,-691.988196,0.00027396,7]
[379218167,1755193841152,-691.988196,0.00027396,7]
[379218168,1755193841161,-1024926.64221893,0.00027397,2]
[379218169,1755193842286,-793526.07296464,0.00027397,2]
[379218170,1755193842338,-980.51711068,0.00027397,2]
[379218174,1755193843022,-37276.12522118,0.00026823,2]
[379218176,1755193843031,-967.8522823,0.00027149,2]
[379218177,1755193843041,-746668.61122245,0.00027397,2]
[379218178,1755193843051,-75067.38013143,0.00027397,2]
[379218179,1755193843060,-1000.0,0.00027397,2]
[379218180,1755193843069,-1000.0,0.00027397,2]